Cogmind - Beta 15 @@@ ROGUE MODE // 2025.06.19 @ 01:45:50 Player: puppuppit Result: Destroyed by H-77 Assassin with Coil Gun Performance ------------- Evolutions (6) 3000 Regions Visited (11) 2200 Robots Destroyed (287) 1435 Value Destroyed (11624) 11624 Prototype IDs (46) 920 Alien Tech Used (0) 0 Bonus (11379) 11379 TOTAL SCORE: 30558 Bonus ------- Triggered High Security 1500 High Alert Combat Kills 3739 Follower Combat Kills 2357 Registered with UFD 300 Met Optimus in HQ 500 Met Warlord at Base 500 MAIN.C Attacked Warlord 500 Warlord Defense Kills 2738 Friendly Fire -755 Cogmind --------- Core Integrity 0/1150 Matter 256/300 Energy 99/100 System Corruption 6% Temperature Cool (2) Movement Flying (35) Location -4/Armory Parts ------- > --- POWER (2) -------- (None) > --- PROPULSION (6) --- Improved Gravmag System Improved Gyrokinetic Inverter Cesium-ion Thruster > --- UTILITY (6) ------ Improved Hacking Suite Advanced Hacking Suite A0-MCA's Component Scanner > --- WEAPON (5) ------- (None) > --- INVENTORY (5) ---- Vortex Chain Reactor Matter Compressor (250) Advanced Recoil Stabilizer Authchip [Propulsion] Peak State ------------ > --- POWER ------------ Micro Fission Core Micro Antimatter Reactor > --- PROPULSION ------- Antigrav System Improved Antigrav System Improved Antigrav System Improved Linear Gravjet Cooled Antigrav System Combat Linear Gravjet > --- UTILITY ---------- Experimental Heat Sink Large Storage Unit Experimental Targeting Computer Thermal Barrier Improved Hacking Suite Advanced Hacking Suite > --- WEAPON ----------- Vortex Driver Coil Gun Coil Gun Hypervelocity Coil Gun Railgun > --- INVENTORY -------- Micro Fission Core Vortex Chain Reactor Antigrav System Antigrav System Linear Gravjet Matter Compressor Advanced Recoil Stabilizer Improved Propulsion Shielding Hardened Medium Armor Plating Advanced Hardlight Generator A0-MCA's Component Scanner Vortex Driver Scatter Rocket Array [Rating: 135] Favorites ----------- Power Micro Fission Core Engine Light Deuterium Engine Power Core Micro Fission Core Reactor Micro Antimatter Reactor Propulsion Antigrav System Treads Light Treads Leg Flexi-carbon Leg Wheel Armored Wheel Hover Unit Antigrav System Flight Unit VTOL Module Utility Large Storage Unit Device Experimental Heat Sink Storage Large Storage Unit Processor Experimental Targeting Computer Hackware Improved Hacking Suite Protection Layered Medium Armor Plating Weapon Hypervelocity Coil Gun Energy Gun EM Pulse Gun Energy Cannon Vortex Driver Ballistic Gun Hypervelocity Coil Gun Ballistic Cannon Heavy Gauss Cannon Launcher Micro-nuke Launcher Special Weapon Improved Remote Datajack Impact Weapon Mace Slashing Weapon Great Axe Piercing Weapon Kinetic Spear Special Melee Weapon Datajack Build | -11 -10 -10 -7 -7 -5 -5 -5 -5 -4 -4 -4 ------- Run | Yrd Mat Sub Rec Scr Fac Upp Upp War Pro Fac Arm Slots Evolved 12 | . . . . . 10 . . . . 2 . Power 1 | . . . . . 1 . . . . . . Propulsion 4 | . . . . . 4 . . . . . . Utility 4 | . . . . . 3 . . . . 1 . Weapon 3 | . . . . . 2 . . . . 1 . Parts Attached 222 | 8 8 7 4 4 73 2 2 16 1 29 68 Power 26 | 1 1 1 . 2 9 . . 2 . 4 6 Engine 5 | 1 . 1 . 2 1 . . . . . . Core 14 | . 1 . . . 7 . . 1 . 2 3 Reactor 7 | . . . . . 1 . . 1 . 2 3 Propulsion 76 | 3 . 2 2 . 28 1 . 3 . 7 30 Treads 3 | 2 . . . . . . . . . . 1 Leg 11 | . . . . . 3 . . . . . 8 Wheel 3 | 1 . 2 . . . . . . . . . Hover 57 | . . . 2 . 25 1 . 3 . 7 19 Flight 2 | . . . . . . . . . . . 2 Utility 58 | 1 3 1 1 1 21 1 1 5 1 10 12 Device 25 | . 1 1 . . 10 1 1 3 . 4 4 Storage 5 | 1 1 . . 1 1 . . . . 1 . Processor 8 | . . . . . 3 . . 2 . . 3 Hackware 10 | . . . . . 4 . . . . 3 3 Protection 10 | . 1 . 1 . 3 . . . 1 2 2 Artifact . | . . . . . . . . . . . . Weapon 62 | 3 4 3 1 1 15 . 1 6 . 8 20 Energy Gun 12 | 2 1 . . . 1 . . . . 1 7 Energy Cannon 4 | . . . . . . . . 3 . . 1 Ballistic Gun 22 | 1 1 1 . 1 8 . 1 . . 5 4 Ballistic Cannon 6 | . . . . . 3 . . . . . 3 Launcher 6 | . 1 2 . . 1 . . 1 . . 1 Special Weapon 8 | . . . . . 1 . . 2 . 2 3 Impact Weapon 1 | . 1 . . . . . . . . . . Slashing Weapon 1 | . . . 1 . . . . . . . . Piercing Weapon 1 | . . . . . 1 . . . . . . Special Melee Weapon 1 | . . . . . . . . . . . 1 Unidentified Prototypes 22 | . . . . . 11 . . 10 . . 1 Parts Lost 97 | . . 8 . . 21 . . . 2 11 55 Power 8 | . . 1 . . . . . . . . 7 Propulsion 44 | . . 1 . . 17 . . . . 2 24 Utility 12 | . . . . . 1 . . . 2 2 7 Weapon 33 | . . 6 . . 3 . . . . 7 17 Highest Loss Streak 31 | . . 3 . . 4 . . . 1 5 31 To Critical Strikes 1 | . . . . . . . . . . . 1 Average Backups 13 | . 12 14 15 10 14 14 15 13 13 13 13 Power 1 | . . . 1 . 1 2 1 . 1 1 1 Propulsion 2 | . 3 2 6 4 . 2 2 2 1 2 3 Utility 6 | . 1 3 1 4 9 7 7 6 7 5 7 Weapon 2 | . 7 7 6 1 1 2 2 3 4 3 . Tool/Special . | . . . . . . . . . . . . Unused Backups 82 | . 4 1 . 26 28 1 4 4 . 8 6 Power 9 | . . . . 3 3 . 1 . . 1 1 Propulsion 15 | . 1 . . 7 2 . . . . 4 1 Utility 46 | . 3 1 . 9 19 1 3 3 . 3 4 Weapon 11 | . . . . 7 3 . . 1 . . . Tool/Special 1 | . . . . . 1 . . . . . . Average Slot Usage (%) 95 | . 98 96 100 95 96 100 98 98 99 96 86 Engine 3 | . 5 8 14 9 1 . . . . . . Core 4 | . 8 4 . . 7 5 5 4 5 2 2 Reactor 2 | . . . . . . 5 5 5 5 7 5 Treads 3 | . 28 4 . . . . . . . . 1 Leg 1 | . . . . . . . . . . . 8 Wheel 1 | . . 22 1 . . . . . . . . Hover 24 | . . . 26 28 32 35 35 35 35 30 18 Device 7 | . . . 8 14 6 11 10 10 9 6 2 Storage 8 | . 18 14 14 14 5 5 5 5 5 5 5 Processor 2 | . . . . . 3 . . 3 5 5 5 Hackware 5 | . . . . . 7 5 5 1 . 10 14 Protection 3 | . 8 13 5 . 2 4 3 5 5 2 1 Energy Gun 3 | . 17 16 . . . . . . . . 4 Ballistic Gun 17 | . 8 5 24 22 19 23 23 21 22 22 6 Peak Build Rating 135 | 6 13 14 19 23 109 109 110 124 117 135 123 Average Rating 72 | 5 10 12 16 19 82 108 109 112 116 125 106 On Entrance 62 | . 6 11 12 19 23 108 109 109 117 117 117 Naked Turns . | . . . . . . . . . . . . Heaviest Build 96 | 12 34 34 31 31 65 65 66 87 65 91 96 Greatest Support 123 | 40 40 40 24 16 67 67 67 72 72 74 123 Greatest Overweight (x) 3 | . . 1 3 1 1 . . 1 . 1 2 Average Overweight (x) . | . . . 1 1 . . . . . . . Largest Inventory Capacity 15 | 8 15 15 15 15 15 15 15 15 15 15 15 Average Capacity 14 | 7 14 15 15 15 15 15 15 15 15 15 14 Most Carried 15 | 2 15 15 15 15 15 15 15 15 15 15 15 Average Carried 13 | . 12 14 14 10 14 14 14 14 14 14 14 Final Capacity 15 | 8 15 15 15 15 15 15 15 15 15 15 15 Final Carried 15 | 2 15 15 15 15 15 15 15 15 15 15 15 Class Distribution -------------------- 35% | Mutant 24% | Scavenger-Gunner 18% | Scavenger-Tank 6% | Hacker-Gunner 4% | Scavenger-Sprinter 4% | Derelict-Skirmisher Dominant Class ---------------- Mutant | -10/Materials Mutant | -10/Subcaves Mutant | -7/Recycling Mutant | -7/Scraptown Scavenger-Tank | -5/Factory Scavenger-Tank | -5/Upper Caves Scavenger-Tank | -5/Upper Caves Scavenger-Gunner | -5/Warlord Scavenger-Gunner | -4/Proximity Caves Scavenger-Gunner | -4/Factory Scavenger-Gunner | -4/Armory Resources | -11 -10 -10 -7 -7 -5 -5 -5 -5 -4 -4 -4 ----------- Run | Yrd Mat Sub Rec Scr Fac Upp Upp War Pro Fac Arm Matter Collected 11705 | 333 304 317 100 90 3166 350 326 1122 268 2632 2697 Remotely . | . . . . . . . . . . . . Salvage Created 13916 | 197 1175 605 228 . 4243 531 408 1473 523 3193 1340 Parts 630 | 19 81 29 7 . 184 30 11 40 15 164 50 Haulers Intercepted 11 | . 2 . . . 9 . . . . . . Recyclers Shooed 13 | . 3 . 1 . 8 . . . . 1 . Parts Field Recycled . | . . . . . . . . . . . . Retrieved Matter . | . . . . . . . . . . . . Parts Self-Destructed 44 | . . 7 . . . 4 10 . 23 . . Prevented 4 | . . 3 . . . . 1 . . . . Kills | -11 -10 -10 -7 -7 -5 -5 -5 -5 -4 -4 -4 ------- Run | Yrd Mat Sub Rec Scr Fac Upp Upp War Pro Fac Arm Combat Hostiles Destroyed 191 | . 20 12 . . 33 5 5 22 7 56 31 Guns 106 | . 7 1 . . 32 1 5 15 5 24 16 Cannons 19 | . . . . . 1 . . 1 . 8 9 AOE 61 | . 13 7 . . . 4 . 6 2 24 5 Classes Destroyed 29 | 3 6 3 . . 5 . 1 5 2 2 2 Worker 17 | 2 6 . . . 4 . . . . 5 . Builder 17 | . 3 . . . 9 . . . . 5 . Tunneler 7 | 5 2 . . . . . . . . . . Hauler 12 | . 2 . . . 9 . . . . . 1 Recycler 16 | 1 3 . 3 . 6 . . . . 3 . Carrier 1 | . . . . . 1 . . . . . . Minesweeper 1 | . . . . . . . 1 . . . . Mechanic 1 | . . . . . . . . . . . 1 Operator 5 | . 1 . . . 2 . . . . 1 1 Turret 2 | . . 2 . . . . . . . . . Watcher 11 | . 3 . . . 3 . . . . 4 1 Swarmer 37 | . 9 4 . . . 4 . 2 . 13 5 Cutter 4 | . . . . . . . . . . 2 2 Saboteur 1 | . . . . . . . . . . 1 . Grunt 75 | . 11 2 . . 16 . 5 9 3 23 6 Brawler 6 | . . . . . 2 . . 1 1 . 2 Duelist 1 | . . . . . . . . 1 . . . Protector 3 | . . . . . . . . 2 . . 1 Sentry 9 | . . . . . 3 1 . . 1 3 1 Demolisher 2 | . . . . . . . . . . . 2 Specialist 6 | . . . . . . . . . 1 . 5 Hunter 10 | . . . . . . . . . 2 5 3 Programmer 27 | . . . . . 12 . . 2 . 9 4 Striker 2 | . . . . . . . . 2 . . . Executioner 2 | . . . . . . . . 2 . . . Artisan 1 | . . 1 . . . . . . . . . Subdweller 6 | . . 6 . . . . . . . . . Botcube 1 | . . . . . 1 . . . . . . Thug 5 | . . . . . . . . 5 . . . Mutant 1 | . . . . . . . . 1 . . . Best Kill Streak 14 | 5 11 6 2 . 9 4 3 8 7 14 6 Combat Bots Only 9 | . 6 6 . . 7 4 3 8 7 9 5 Max Kills in Single Turn 6 | 1 6 2 1 . 3 4 2 2 2 5 3 Gunslinging 1 | . . . . . 1 . 1 . . 1 . Exploded 5 | . 4 2 . . . 4 . 2 2 5 3 Melee . | . . . . . . . . . . . . Uniques/NPCs Destroyed . | . . . . . . . . . . . . Combat | -11 -10 -10 -7 -7 -5 -5 -5 -5 -4 -4 -4 -------- Run | Yrd Mat Sub Rec Scr Fac Upp Upp War Pro Fac Arm Hostile Shots Fired 1301 | . 40 84 . . 216 8 2 41 17 265 628 Missed 516 | . 11 30 . . 77 4 1 14 5 124 250 Hits 785 | . 29 54 . . 139 4 1 27 12 141 378 Melee 8 | . . . . . . . . . . 1 7 Projectile 777 | . 29 54 . . 139 4 1 27 12 140 371 AOE 14 | . . . . . 1 . . 1 . . 12 Critical Strikes 24 | . . 1 . . 6 . 1 . . 3 13 Part Disruptions 2 | . . . . . 2 . . . . . . Damage Taken 14110 | . 371 948 . . 2884 108 20 634 241 2443 6461 Core 1737 | . 65 140 . . 257 . 20 86 . 249 920 Absorbed by Shields 77 | . . . . . . . . 37 13 . 27 Reduced by Siege Mode 31 | . . . . . . . . . . . 31 Redirected to Shielding 179 | . 11 25 . . . . . . 39 104 . Ignored by Resistances 174 | . . . . . . . . . . 174 . Regen/Repaired (Parts) 1158 | . 38 . . . 324 . . 148 . 526 122 Core Remaining (%) 60 | 100 . . . 18 . . . . 63 . . Volleys Fired 592 | 12 79 47 13 . 172 10 11 56 10 81 101 Largest 5 | 2 2 2 2 . 4 4 4 4 4 5 5 Hottest 230 | 80 80 80 40 . 135 135 135 200 135 230 191 Shots Fired 1664 | 24 130 71 26 . 593 38 46 157 34 308 237 Gun 1459 | 24 118 39 26 . 575 37 46 133 32 277 152 Cannon 109 | . . . . . 18 . . 3 . 24 64 Launcher 73 | . 12 32 . . . 1 . 6 2 7 13 Special 23 | . . . . . . . . 15 . . 8 Kinetic 1350 | 3 36 5 26 . 593 37 46 133 32 274 165 Thermal 47 | . . . . . . . . . . . 47 Explosive 23 | . . . . . . 1 . . 2 7 13 Electromagnetic 188 | 21 94 66 . . . . . . . 3 4 Entropic 33 | . . . . . . . . 9 . 24 . Robot Hit Streak 31 | 7 12 31 4 . 21 17 9 13 6 22 17 Robot Miss Streak 7 | 1 6 2 2 . 6 1 4 4 7 6 7 Penetration Max 3 | . . . . . 3 2 1 2 2 3 1 Secondary Targets 10 | . . 1 . . 1 . 1 3 . 2 2 Max Gunslinging Chain 1 | . . 1 . . 1 . 1 1 . 1 1 Shots Hit Robots 990 | 18 75 49 13 . 341 28 19 107 20 170 150 Core Hits 640 | 9 46 24 6 . 178 23 10 63 24 149 108 Critical Kills 57 | . . . . . 14 3 4 16 4 16 . Critical Parts Destroyed 81 | . . . . . 22 11 6 18 6 18 . Critical Strikes 165 | . 1 1 . . 38 14 10 35 13 43 10 Burn 1 | . . . . . . . . . . . 1 Destroy 144 | . . . . . 38 14 10 34 13 35 . Blast 9 | . . . . . . . . . . . 9 Corrupt 2 | . 1 1 . . . . . . . . . Sunder 9 | . . . . . . . . 1 . 8 . Melee Attacks 39 | . 36 1 2 . . . . . . . . Impact 37 | . 36 1 . . . . . . . . . Slashing 2 | . . . 2 . . . . . . . . Piercing . | . . . . . . . . . . . . Sneak Attacks . | . . . . . . . . . . . . Combat Hostiles . | . . . . . . . . . . . . Follow-up Attacks . | . . . . . . . . . . . . Damage Inflicted 32178 | 204 2193 1112 120 . 8066 847 264 4363 1022 7995 5992 Guns 17252 | 160 943 328 120 . 7342 536 264 1490 499 3292 2278 Cannons 3276 | . . . . . 167 . . 327 . 1229 1553 Explosions 11625 | 44 1250 761 . . 557 311 . 2546 523 3472 2161 Melee 23 | . . 23 . . . . . . . . . Ramming 2 | . . . . . . . . . . 2 . Kinetic 17273 | 27 270 58 120 . 7509 536 264 1490 499 3219 3281 Thermal 2563 | 44 147 17 . . 557 . . . . 1286 512 Explosive 5886 | . 705 . . . . 311 . . 523 2186 2161 Electromagnetic 2329 | 133 1071 1014 . . . . . . . 73 38 Impact 23 | . . 23 . . . . . . . . . Slashing . | . . . . . . . . . . . . Piercing . | . . . . . . . . . . . . Entropic 4102 | . . . . . . . . 2873 . 1229 . Highest Corruption 9 | . . 1 1 . 9 9 6 6 . 3 6 Average Corruption 2 | . . 1 1 . 2 8 6 6 . 1 2 Corruption Purged 14 | . . . . . 6 3 . . . 3 2 Corruption Blocked . | . . . . . . . . . . . . Effects 84 | . . 3 5 . 14 13 16 1 . 3 29 Message Errors 20 | . . . 1 . 2 5 4 1 . 2 5 Matter Fused 28 | . . 1 2 . 2 2 5 . . 1 15 Heat Flow Errors 9 | . . 1 2 . 1 2 1 . . . 2 Energy Discharges 7 | . . . . . 3 1 1 . . . 2 Data Loss (minor) 10 | . . . . . 4 2 2 . . . 2 Data Loss (major) 1 | . . . . . . . 1 . . . . Misfires 5 | . . 1 . . . 1 2 . . . 1 Alerts 1 | . . . . . 1 . . . . . . Weapon Failures 3 | . . . . . 1 . . . . . 2 Overload Shots . | . . . . . . . . . . . . Overflow Damage 601 | . 174 4 . . 26 . . 72 . 244 81 Projectiles 81 | . . . . . . . . . . 70 11 Explosions 520 | . 174 4 . . 26 . . 72 . 174 70 Melee . | . . . . . . . . . . . . Knockbacks 16 | . . 1 . . 3 . . . . . 12 Impact 1 | . . 1 . . . . . . . . . Kinetic 15 | . . . . . 3 . . . . . 12 Secondary . | . . . . . . . . . . . . Self-Inflicted Damage 496 | . 96 68 . . . 19 . . 21 92 200 Shots 24 | . 4 6 . . . 1 . . 1 5 7 Rammed 1 | . . . . . . . . . . 1 . Targets Rammed 1 | . . . . . . . . . . 1 . Kicked . | . . . . . . . . . . . . Crushed . | . . . . . . . . . . . . Highest Temperature 342 | 90 120 235 184 . 326 303 143 309 139 328 342 Average Temperature 52 | 32 24 118 32 . 48 39 47 22 67 72 90 Received Heat Transfer 1985 | . 102 493 . . 432 . 27 132 9 270 520 Effects 4 | . . . . . 1 . . . . 1 2 Energy Bleed 2 | . . . . . . . . . . 1 1 Matter Decay 1 | . . . . . . . . . . . 1 Short Circuit 1 | . . . . . 1 . . . . . . Siege Activations 2 | . . . . . . . . . . . 2 Total Turns 12 | . . . . . . . . . . . 12 Longest Duration 7 | . . . . . . . . . . . 7 Martial Activations . | . . . . . . . . . . . . Shielding Activations . | . . . . . . . . . . . . Robots Disrupted . | . . . . . . . . . . . . Combat Hostiles . | . . . . . . . . . . . . Robots Corrupted 4 | . . 4 . . . . . . . . . Combat Hostiles 4 | . . 4 . . . . . . . . . Parts Fried 8 | . 2 6 . . . . . . . . . Impact Corruptions . | . . . . . . . . . . . . Robots Melted 1 | . . . . . . . . . . . 1 Combat Hostiles 1 | . . . . . . . . . . . 1 Parts Melted 10 | . . 1 . . . . . 1 . . 8 Heat Transferred 2312 | . 200 50 . . 350 . . . . 750 962 Parts Sabotaged . | . . . . . . . . . . . . Parts Stolen . | . . . . . . . . . . . . Parts Stripped . | . . . . . . . . . . . . Power Chain Reactions 8 | 1 5 2 . . . . . . . . . Alert | -11 -10 -10 -7 -7 -5 -5 -5 -5 -4 -4 -4 ------- Run | Yrd Mat Sub Rec Scr Fac Upp Upp War Pro Fac Arm Maximum Alert Level 5 | . 1 . 1 . 5 . . . . 5 5 Low Security (%) 29 | 100 29 . 98 . 32 . . . . 28 . Level 1 17 | . 70 . 1 . 7 . . . . 16 . Level 2 6 | . . . . . 8 . . . . 19 . Level 3 11 | . . . . . 9 . . . . 16 21 Level 4 21 | . . . . . 15 . . . . 13 61 Level 5 8 | . . . . . 19 . . . . . 7 High Security 5 | . . . . . 6 . . . . 5 9 Max Security . | . . . . . . . . . . . . Peak Influence 2176 | 10 345 . 200 . 2176 . . . . 1742 1899 Initial 1100 | . . . 154 . . . . . . 131 1100 Average 737 | 2 195 . 112 . 888 . . . . 593 1298 Influence Increases 10854 | 40 785 575 113 . 3013 110 115 734 369 2721 2279 Destroy 0b10 Robot/C 4740 | . 400 160 . . 1040 100 100 540 220 1140 1040 Destroy 0b10 Robot/NC 455 | 40 100 . 15 . 170 . 5 10 . 90 25 Destroy Leader 774 | . 90 10 . . 252 10 10 . 10 208 184 Allied During Kill 545 | . . . . . 84 . . 154 64 3 240 Trap Triggered on 0b10 40 | . . . . . 40 . . . . . . Successful Hack 359 | . 40 . 66 . 127 . . . . 75 51 Select Force Hacks 60 | . 30 . 30 . . . . . . . . Disable Machine 570 | . 60 . . . 225 . . . . 150 135 Destroy Structure 1091 | . 65 . 2 . 370 . . . . 350 304 Partial Spotted 150 | . . . . . 105 . . . . 45 . Lose Combat Pursuer 2070 | . . 405 . . 600 . . 30 75 660 300 Influence Decreases 9222 | 40 549 488 399 37 837 1004 549 1062 680 1188 2389 Entered New Map 3706 | . . 114 169 37 . 806 245 848 520 78 889 Time Decay 3376 | 40 399 294 230 . 597 198 294 194 70 530 530 Lost Part 930 | . . 80 . . 170 . . . 20 110 550 Lost Ally 310 | . . . . . 70 . 10 20 70 20 120 Purge Threat 900 | . 150 . . . . . . . . 450 300 Squads Dispatched 81 | . 4 . . . 35 . . . 1 26 15 Investigation 22 | . 2 . . . 10 . . . . 7 3 Extermination 11 | . . . . . 5 . . . . 3 3 Reinforcement 30 | . 2 . . . 14 . . . . 11 3 Assault 14 | . . . . . 6 . . . 1 1 6 Garrison 4 | . . . . . . . . . . 4 . Intercept . | . . . . . . . . . . . . Searches Triggered . | . . . . . . . . . . . . Construction Impeded 9 | . . . . . 5 . . . . 4 . Haulers Reinforced 5 | . . . . . 3 . . . . 2 . Active Scanning Responses . | . . . . . . . . . . . . Cargo Convoy Interrupts . | . . . . . . . . . . . . Stealth | -11 -10 -10 -7 -7 -5 -5 -5 -5 -4 -4 -4 --------- Run | Yrd Mat Sub Rec Scr Fac Upp Upp War Pro Fac Arm Distress Signals 14 | . . . . . 7 . . 2 . 1 4 Communications Jammed . | . . . . . . . . . . . . Distress Signals . | . . . . . . . . . . . . Times Spotted 436 | . 24 24 . . 112 3 1 68 15 102 87 Peak Tracking Total 26 | . 4 6 . . 11 4 1 12 9 13 26 Tactical Retreats 50 | . . 3 . . 20 . . 2 2 16 7 Traps | -11 -10 -10 -7 -7 -5 -5 -5 -5 -4 -4 -4 ------- Run | Yrd Mat Sub Rec Scr Fac Upp Upp War Pro Fac Arm Traps Triggered 10 | . 1 . . . 4 . . . . 2 3 Indirectly . | . . . . . . . . . . . . Trap Hack Attempts . | . . . . . . . . . . . . Triggered . | . . . . . . . . . . . . Disarmed . | . . . . . . . . . . . . Reprogrammed 6 | . . . . . 6 . . . . . . Reused 4 | . . . . . 4 . . . . . . Traps Extracted . | . . . . . . . . . . . . Installed . | . . . . . . . . . . . . Triggered 4 | . . . . . 4 . . . . . . Machines | -11 -10 -10 -7 -7 -5 -5 -5 -5 -4 -4 -4 ---------- Run | Yrd Mat Sub Rec Scr Fac Upp Upp War Pro Fac Arm Machines Disabled 43 | . 5 3 . . 15 . . 1 . 10 9 Max in Single Turn 6 | . 2 3 . . 5 . . 1 . 6 1 Garrison Access 4 | . . . . . 3 . . . . 1 . Machines Repaired . | . . . . . . . . . . . . Machines Dismantled . | . . . . . . . . . . . . Machines Sabotaged . | . . . . . . . . . . . . Overloaded Fab Kills . | . . . . . . . . . . . . Hacking | -11 -10 -10 -7 -7 -5 -5 -5 -5 -4 -4 -4 --------- Run | Yrd Mat Sub Rec Scr Fac Upp Upp War Pro Fac Arm Machines Accessed 84 | . 7 . 6 2 34 . 1 7 . 17 10 Terminals 33 | . 5 . 3 . 14 . . . . 6 5 Fabricators 8 | . . . . . 3 . . . . 2 3 Repair Stations 11 | . 1 . . . 6 . . . . 3 1 Recycling Units 14 | . 1 . 3 . 5 . . . . 4 1 Scanalyzers 4 | . . . . . 3 . . . . 1 . Garrison Access 4 | . . . . . 3 . . . . 1 . Total Hacks 273 | . 22 . 15 11 130 . 1 12 . 62 20 Successful 169 | . 10 . 11 11 68 . 1 12 . 44 12 Failed 103 | . 11 . 4 . 62 . . . . 18 8 Catastrophic 13 | . . . . . 10 . . . . 1 2 Database Lockouts 1 | . 1 . . . . . . . . . . Manual 94 | . 10 . 5 . 54 . . . . 22 3 Terminals 124 | . 18 . 6 . 62 . . . . 26 12 Fabricators 17 | . . . . . 9 . . . . 3 5 Repair Stations 48 | . 3 . . . 22 . . . . 21 2 Recycling Units 32 | . 1 . 9 . 13 . . . . 8 1 Scanalyzers 22 | . . . . . 19 . . . . 3 . Garrison Access 6 | . . . . . 5 . . . . 1 . Terminal Hacks 55 | . 4 . 2 11 10 . 1 12 . 11 4 Record 10 | . . . . 4 . . . 6 . . . Robot Schematic 1 | . . . 1 . . . . . . . . Robot Analysis 17 | . 1 . . 7 6 . . . . 3 . Prototype ID Bank 8 | . 1 . . . 1 . . 5 . 1 . Open Door 3 | . . . . . . . 1 1 . . 1 Branch Access Points 2 | . . . . . 1 . . . . 1 . Terminal Index 3 | . 1 . . . . . . . . 1 1 Unreport Threat 6 | . 1 . . . . . . . . 3 2 Reprogram Traps 1 | . . . . . 1 . . . . . . Investigation Status 1 | . . . . . . . . . . 1 . Recall Reinforcements 2 | . . . . . 1 . . . . 1 . Zone Layout 1 | . . . 1 . . . . . . . . Fabricator Hacks 13 | . . . . . 6 . . . . 3 4 Network Status 1 | . . . . . 1 . . . . . . Load Schematic 5 | . . . . . 2 . . . . 2 1 Build 7 | . . . . . 3 . . . . 1 3 Repair Station Hacks 35 | . 2 . . . 14 . . . . 17 2 Scan Component 19 | . 1 . . . 7 . . . . 10 1 Repair 16 | . 1 . . . 7 . . . . 7 1 Recycling Unit Hacks 11 | . . . 4 . 4 . . . . 3 . Recycle Component 2 | . . . . . 2 . . . . . . Process 1 | . . . . . 1 . . . . . . Report Inventory 5 | . . . 2 . . . . . . 3 . Retrieve Matter 1 | . . . . . 1 . . . . . . Retrieve Components 2 | . . . 2 . . . . . . . . Scanalyzer 16 | . . . . . 15 . . . . 1 . Insert Component 7 | . . . . . 6 . . . . 1 . Analyze 9 | . . . . . 9 . . . . . . Garrison Access Hacks 4 | . . . . . 3 . . . . 1 . Seal Access 4 | . . . . . 3 . . . . 1 . Unauthorized Hacks 34 | . 4 . 4 . 16 . . . . 8 2 Terminals 22 | . 3 . 3 . 11 . . . . 4 1 Assimilate 1 | . . . . . 1 . . . . . . Botnet 21 | . 3 . 3 . 10 . . . . 4 1 Fabricators . | . . . . . . . . . . . . Repair Stations . | . . . . . . . . . . . . Recycling Units 12 | . 1 . 1 . 5 . . . . 4 1 Tunnel 2 | . 1 . 1 . . . . . . . . Fedlink 8 | . . . . . 5 . . . . 3 . Scraphulk 2 | . . . . . . . . . . 1 1 Scanalyzers . | . . . . . . . . . . . . Garrison Access . | . . . . . . . . . . . . Data Cores Recovered . | . . . . . . . . . . . . Used . | . . . . . . . . . . . . Hacking Detections 57 | . 5 . 5 . 26 . . . . 14 7 Full Trace Events 9 | . 1 . . . 5 . . . . 2 1 Feedback Events . | . . . . . . . . . . . . Feedback Blocked . | . . . . . . . . . . . . Robot Schematics Acquired 1 | . . . 1 . . . . . . . . Robots Built 4 | . . . . . 3 . . . . . 1 Authchips . | . . . . . . . . . . . . Time 201 | . . . . . 174 . . . . . 27 Total Robot Build Rating 10 | . . . . . 9 . . . . . 1 Part Schematics Acquired 3 | . . . . . 3 . . . . . . Parts Built 7 | . . . . . 2 . . . . 2 3 Authchips 1 | . . . . . . . . . . . 1 Time 263 | . . . . . 46 . . . . 53 164 Total Part Build Rating 49 | . . . . . 18 . . . . 12 19 Parts Repaired 16 | . 1 . . . 7 . . . . 7 1 Time 838 | . 26 . . . 379 . . . . 379 54 Parts Recycled 2 | . . . . . 2 . . . . . . Recycled Matter 300 | . . . . . 300 . . . . . . Retrieved Matter 300 | . . . . . 300 . . . . . . Retrieved Components 6 | . . . 6 . . . . . . . . Parts Scanalyzed 6 | . . . . . 5 . . . . 1 . Part Schematics Acquired 3 | . . . . . 3 . . . . . . Parts Damaged 1 | . . . . . 1 . . . . . . Bothacking | -11 -10 -10 -7 -7 -5 -5 -5 -5 -4 -4 -4 ------------ Run | Yrd Mat Sub Rec Scr Fac Upp Upp War Pro Fac Arm Used RIF Installer . | . . . . . . . . . . . . Robots Hacked 2 | . . . . . . . . 2 . . . Non-combat . | . . . . . . . . . . . . Combat 2 | . . . . . . . . 2 . . . Robot Hacks Applied 2 | . . . . . . . . 2 . . . parse_system 2 | . . . . . . . . 2 . . . Relay Couplers Released 3 | . . . . . 3 . . . . . . Programmers 3 | . . . . . 3 . . . . . . Fabnet Peak Effective % . | . . . . . . . . . . . . Robots Rewired 12 | . . . . . . . . 5 1 . 6 Allies Hacked . | . . . . . . . . . . . . Hacks Repelled . | . . . . . . . . . . . . Allies | -11 -10 -10 -7 -7 -5 -5 -5 -5 -4 -4 -4 -------- Run | Yrd Mat Sub Rec Scr Fac Upp Upp War Pro Fac Arm Total Allies 20 | . . . . 1 4 . . 5 1 1 8 Largest Group 5 | . . . . 1 4 . . 5 4 1 4 Highest-Rated Group 269 | . . . . 63 111 . . 262 196 113 269 Highest-Rated Ally 123 | . . . . 63 63 . . 68 64 113 123 Total Orders 20 | . . . . . 2 . 5 6 . . 7 STAY 6 | . . . . . . . . 3 . . 3 FOLLOW 9 | . . . . . 2 . . 3 . . 4 EXPLORE 5 | . . . . . . . 5 . . . . Ally Attacks 252 | . . . . . 90 . . 25 21 9 107 Total Damage 8297 | . . . . . 2279 . . 876 739 391 4012 Kills 56 | . . . . . 19 . . 8 4 1 24 Allies Corrupted . | . . . . . . . . . . . . Allies Melted . | . . . . . . . . . . . . Intel | -11 -10 -10 -7 -7 -5 -5 -5 -5 -4 -4 -4 ------- Run | Yrd Mat Sub Rec Scr Fac Upp Upp War Pro Fac Arm Active Infowar (turns) 3339 | . . 27 320 1976 939 . . 1 . . 76 Optics 1 | . . . . . . . . 1 . . . Terrain 3262 | . . 27 320 1976 939 . . . . . . Machine Analysis 76 | . . . . . . . . . . . 76 Robot Analysis Total 17 | . 1 . . 7 6 . . . . 3 . Derelict Logs Recovered 7 | . . . . 5 . . 2 . . . . Drone Launches 4 | . . . . . . . 4 . . . . Drone Recoveries 2 | . . . . . . . 2 . . . . Exploration | -11 -10 -10 -7 -7 -5 -5 -5 -5 -4 -4 -4 ------------- Run | Yrd Mat Sub Rec Scr Fac Upp Upp War Pro Fac Arm Turns Passed 12643 | 129 1242 658 495 1976 2502 400 642 1135 226 1583 1655 Spaces Moved 13979 | 51 551 434 275 1638 3214 857 990 1729 376 2247 1617 Core 1 | 1 . . . . . . . . . . . Treads 685 | 49 551 24 . . . . . . . . 61 Legs 315 | . . . . . 14 . . . . . 301 Wheels 432 | 1 . 410 21 . . . . . . . . Hover 12537 | . . . 254 1638 3200 857 990 1729 376 2247 1246 Flight 9 | . . . . . . . . . . . 9 Fastest Speed 33 | 50 160 105 105 116 33 36 40 38 38 35 34 Average Speed 60 | 156 160 108 115 116 42 39 40 40 38 36 60 Slowest Speed 245 | 160 160 240 245 116 132 40 40 96 38 108 190 Overloaded Moves . | . . . . . . . . . . . . Propulsion Burnouts . | . . . . . . . . . . . . Robots Hopped 1 | . . . . . . . . . . . 1 Potential Cave-ins . | . . . . . . . . . . . . Cave-ins Triggered . | . . . . . . . . . . . . Exploration Rate (%) 59 | 4 85 25 39 82 66 82 88 89 56 43 58 Regions Visited 11 Branch Regions 8 Pre-discovered Areas 7 | . 1 . 1 3 1 . 1 . . . . Known Exits Taken 2 | . . . . . 1 . . . . 1 . Unknown Exits Taken 9 | 1 1 1 1 1 . 1 1 1 1 . . Scrap Searched 19 | . . . . 8 . 3 5 . 3 . . Spaces Dug 30 | . 11 . 2 . 6 . . 1 . 7 3 Terrain Destroyed 956 | 5 79 5 2 . 196 48 14 116 50 210 231 Melee 13 | . 11 . 2 . . . . . . . . Projectile 256 | . . . . . 113 14 13 25 2 62 27 AOE 680 | 5 68 5 . . 82 34 . 89 48 146 203 Terrain Rammed . | . . . . . . . . . . . . Walls Destroyed . | . . . . . . . . . . . . Machines Disabled . | . . . . . . . . . . . . Actions | -11 -10 -10 -7 -7 -5 -5 -5 -5 -4 -4 -4 --------- Run | Yrd Mat Sub Rec Scr Fac Upp Upp War Pro Fac Arm Total 17008 | 73 718 545 429 1731 4024 889 1210 2062 432 2799 2096 Wait 1431 | . 6 26 120 24 370 13 188 175 35 329 145 Move 13966 | 50 550 433 274 1637 3213 856 989 1728 375 2246 1615 Hop 1 | . . . . . . . . . . . 1 Pick Up 220 | 2 21 10 6 30 67 3 4 24 1 20 32 Fast Attach 137 | 7 2 1 1 3 40 1 6 11 . 21 44 Attach 102 | . 1 11 . . 29 . . 2 2 17 40 Detach 54 | . . 4 . 2 15 . . 3 . 12 18 Swap 197 | 1 14 9 5 1 51 4 1 26 2 45 38 Drop 243 | 1 9 3 8 34 66 2 11 37 . 27 45 Fire 592 | 12 79 47 13 . 172 10 11 56 10 81 101 Melee 39 | . 36 1 2 . . . . . . . . Ram 1 | . . . . . . . . . . 1 . Kick . | . . . . . . . . . . . . Crush . | . . . . . . . . . . . . Escape Stasis 10 | . . . . . . . . . . . 10 Rewire 14 | . . . . . . . . . 7 . 7 Trap . | . . . . . . . . . . . . Miscellaneous 1 | . . . . . 1 . . . . . . Route ------- -11/Scrapyard -10/Materials (discovered 5 exits: [*Mat x2] / [*Min x2] / [*Sub]) -10/Subcaves (discovered 2 exits: [*Mat] / *Rec) -7/Recycling -7/Scraptown (discovered 2 exits: *Fac x2) -5/Factory (discovered 3 exits: *Fac / *Upp x2) -5/Upper Caves -5/Upper Caves (discovered 2 exits: *Fac / *War) -5/Warlord -4/Proximity Caves -4/Factory (discovered 4 exits: [*Res] / *Upp x2 / *Arm) -4/Armory History --------- Turn | Location | Event 11 | -11/Scrapyard | Discovered new exit (range 16) 130 | -11/Scrapyard | Entered Materials 244 | -10/Materials | Discovered new exit (range 11) 316 | -10/Materials | Build established: Mutant 503 | -10/Materials | Discovered new exit (range 16) 695 | -10/Materials | Repaired EM Pulse Gun 887 | -10/Materials | Discovered new exit (range 11) 1238 | -10/Materials | Discovered new exit (range 16) 1291 | -10/Materials | Central database locked down 1347 | -10/Materials | Discovered new exit (range 9) 1372 | -10/Materials | Entered Subcaves 1373 | -10/Subcaves | Approached by a straggling Scientist 1374 | -10/Subcaves | Discovered new exit (range 15) 1466 | -10/Subcaves | Discovered new exit (range 15) 1886 | -10/Subcaves | Core integrity fell below 50% 1903 | -10/Subcaves | Core integrity fell below 20% 1912 | -10/Subcaves | Ambushed by angry Subdweller bent on revenge 1930 | -10/Subcaves | Lost 3 parts (3w) 2030 | -10/Subcaves | Entered Recycling 2496 | -7/Recycling | Scanned before Scraplab entrance 2504 | -7/Recycling | Discovered new exit (range 15) 2513 | -7/Recycling | Entered Scraplab 2525 | -7/Recycling | Entered Scraptown 2525 | -7/Scraptown | System corruption cleaned by C-Scrubber 2617 | -7/Scraptown | Scanned Subdweller tech in exchange for log data 2619 | -7/Scraptown | Learned location of Warlord (-5) 2621 | -7/Scraptown | Learned location of 2 exits from Lower Caves 2622 | -7/Scraptown | Learned location of Quarantine (-3) 2623 | -7/Scraptown | Learned Factory terminal intel 2624 | -7/Scraptown | Learned location of Extension (-6) 2685 | -7/Scraptown | Visited UFD Registry 2685 | -7/Scraptown | Registered with UFD as "Hellgrid" 2706 | -7/Scraptown | Visited Cyclists 2714 | -7/Scraptown | Entered Cyclist Reading Room 2814 | -7/Scraptown | Visited Junk Repository 2925 | -7/Scraptown | Visited Botcube Research 2941 | -7/Scraptown | Visited Analyses Database 2973 | -7/Scraptown | Visited Abandonware Association 2985 | -7/Scraptown | Learned abandonware demo "REPAIR.EXE" 3030 | -7/Scraptown | Visited DA-N13 Charitable Foundation 3040 | -7/Scraptown | Found DCF Scrap (31 items) 3077 | -7/Scraptown | Visited Cartography Club 3119 | -7/Scraptown | Visited A0-MCA Data Center 3126 | -7/Scraptown | Given a B- rating by A0-MCA 3128 | -7/Scraptown | Found A0-MCA's Component Scanner 3485 | -7/Scraptown | Heard Great Nut preacher, LISTEN AND RECITE! 3504 | -7/Scraptown | Discovered new exit (range 11) 3580 | -7/Scraptown | Visited Symbiants 3645 | -7/Scraptown | Visited Cave Peace 3655 | -7/Scraptown | Visited Bundlers 3906 | -7/Scraptown | Found Botcube 3959 | -7/Scraptown | Visited Scrap Suit Storage 3965 | -7/Scraptown | Found Scrap Suit 4273 | -7/Scraptown | Botcube activated 4411 | -7/Scraptown | Met Optimus 4411 | -7/Scraptown | Accepted into 0bPrime 4473 | -7/Scraptown | Discovered new exit (range 3) 4501 | -7/Scraptown | Entered Factory 4501 | -5/Factory | Accompanied by 1 ally 4501 | -5/Factory | Evolved 10 slots: Power x1, Propulsion x4, Utility x3, Weapon x2 4502 | -5/Factory | Loaded intel: 26 terminal locations 4600 | -5/Factory | Fabricated Enh. Quantum Rifle? 4624 | -5/Factory | Identified exit to Upper Caves 4717 | -5/Factory | Fabricated G-47 Trooper? 4775 | -5/Factory | Lost 4 parts (4n) 4809 | -5/Factory | Build established: Derelict-Skirmisher 4926 | -5/Factory | Repaired Airjet 4929 | -5/Factory | Discovered new exit (range 17) 5511 | -5/Factory | Repaired Antigrav System 5599 | -5/Factory | Destroyed Mutated Botcube 5743 | -5/Factory | Build established: Scavenger-Tank 5810 | -5/Factory | Loaded intel: 8 recycling unit locations 5839 | -5/Factory | Spotted B-75 Beast 5887 | -5/Factory | Repaired Broken Airjet? 6116 | -5/Factory | Learned location of Protoforge (-2) 6522 | -5/Factory | Repaired Enh. Coil Gun 6601 | -5/Factory | First assault squad dispatched 6650 | -5/Factory | Build established: Scavenger-Sprinter 6748 | -5/Factory | Found Prototype Launcher 6748 | -5/Factory | Identified Scatter Rocket Array 6780 | -5/Factory | Repaired Broken Hyp. Coil Gun 6838 | -5/Factory | High security lockdown imminent 6869 | -5/Factory | Repaired Exp. Heat Sink? 6881 | -5/Factory | Destroyed 7 combat bots 6918 | -5/Factory | High security lockdown engaged 6953 | -5/Factory | Repaired Broken Hyp. Coil Gun 7003 | -5/Factory | Entered Upper Caves 7005 | -5/Upper Caves | Attracted the attention of an 0b10 checkpoint 7158 | -5/Upper Caves | Build established: Scavenger-Tank 7255 | -5/Upper Caves | Discovered new exit (range 7) 7403 | -5/Upper Caves | Entered another Upper Caves area 7422 | -5/Upper Caves | Spotted B-75 Beast 7427 | -5/Upper Caves | Discovered new exit (range 3) 7460 | -5/Upper Caves | Learned location of 1 exit from Factory 7595 | -5/Upper Caves | Encountered a Warlord checkpoint 7759 | -5/Upper Caves | Discovered new exit (range 57) 8045 | -5/Upper Caves | Entered Warlord 8063 | -5/Warlord | System corruption cleaned by Quarantine Array 8266 | -5/Warlord | Rebuked by Warlord 8290 | -5/Warlord | Warlord's base attacked by MAIN.C 8387 | -5/Warlord | Found Prototype Energy Cannon 8390 | -5/Warlord | Found Prototype Energy Cannon 8390 | -5/Warlord | Identified Vortex Driver 8393 | -5/Warlord | Identified Vortex Cannon 8396 | -5/Warlord | Found Vortex Driver 8467 | -5/Warlord | Found Prototype Reactor 8467 | -5/Warlord | Identified Vortex Chain Reactor 8473 | -5/Warlord | Found Prototype Device 8473 | -5/Warlord | Identified Thermal Barrier 8484 | -5/Warlord | Found Prototype Processor 8484 | -5/Warlord | Identified Exp. Targeting Computer 8594 | -5/Warlord | Found Vortex Cannon 8601 | -5/Warlord | Found Prototype Launcher 8640 | -5/Warlord | Warlord forces counterattacked 8652 | -5/Warlord | Spotted Striker 8659 | -5/Warlord | Destroyed Striker 8695 | -5/Warlord | Lost 3 allies 8734 | -5/Warlord | Found Prototype Device 8734 | -5/Warlord | Identified Adv. Kinecellerator 8757 | -5/Warlord | Build established: Scavenger-Gunner 8775 | -5/Warlord | Spotted Executioner 8822 | -5/Warlord | Destroyed Executioner 8854 | -5/Warlord | Spotted Executioner 8930 | -5/Warlord | Identified Vortex Catalyst Activator 8931 | -5/Warlord | Lost 26 allies 8965 | -5/Warlord | Warlord base infiltrated, sounded retreat 8986 | -5/Warlord | Spotted Striker 9006 | -5/Warlord | Allies destroyed Striker 9021 | -5/Warlord | Destroyed 8 combat bots 9047 | -5/Warlord | Spotted Striker 9049 | -5/Warlord | Allies destroyed Striker 9058 | -5/Warlord | Spotted Executioner 9058 | -5/Warlord | Destroyed Executioner 9118 | -5/Warlord | Spotted Striker 9121 | -5/Warlord | Destroyed Striker 9123 | -5/Warlord | Spotted Striker 9155 | -5/Warlord | Discovered new exit (range 14) 9175 | -5/Warlord | Lost 6 allies 9180 | -5/Warlord | Entered Proximity Caves 9180 | -4/Proximity Caves | Accompanied by 4 allies 9264 | -4/Proximity Caves | Attracted the attention of an 0b10 outpost 9332 | -4/Proximity Caves | Destroyed 7 combat bots 9379 | -4/Proximity Caves | Discovered new exit (range 5) 9388 | -4/Proximity Caves | Lost 4 allies 9406 | -4/Proximity Caves | Entered Factory 9406 | -4/Factory | Evolved 2 slots: Utility x1, Weapon x1 9407 | -4/Factory | Identified exit to Upper Caves 9538 | -4/Factory | Repaired Imp. Antigrav System 9597 | -4/Factory | Repaired Antigrav System 9606 | -4/Factory | Loaded intel: 8 recycling unit locations 9677 | -4/Factory | Identified exit to Armory 9686 | -4/Factory | Lost 5 parts (1n1u3w) 9904 | -4/Factory | Repaired Hyp. Coil Gun 9963 | -4/Factory | Repaired Hyp. Coil Gun 10035 | -4/Factory | Repaired Mic. Antimatter Reactor 10086 | -4/Factory | Repaired Coil Gun? 10088 | -4/Factory | Garrison activated, responded to threat 10156 | -4/Factory | First assault squad dispatched 10311 | -4/Factory | Fabricated Adv. Recoil Stabilizer? 10317 | -4/Factory | Destroyed 9 combat bots 10351 | -4/Factory | Repaired Imp. Linear Gravjet 10468 | -4/Factory | Destroyed 8 combat bots 10628 | -4/Factory | Destroyed 7 combat bots 10642 | -4/Factory | Build established: Hacker-Gunner 10736 | -4/Factory | Lost 4 parts (1n1u2w) 10825 | -4/Factory | Discovered new exit (range 7) 10846 | -4/Factory | Scraphulk reinforcements arrived? 10904 | -4/Factory | High security lockdown imminent 10948 | -4/Factory | Build established: Scavenger-Gunner 10984 | -4/Factory | High security lockdown engaged 10989 | -4/Factory | Entered Armory 10994 | -4/Armory | Found Prototype Processor 10994 | -4/Armory | Identified Exp. Signal Interpreter 11187 | -4/Armory | Fabricated A-02 Transporter? 11194 | -4/Armory | Lost 3 parts (1n2w) 11239 | -4/Armory | First assault squad dispatched 11251 | -4/Armory | Repaired Cld. Antigrav System? 11481 | -4/Armory | Lost 3 allies 11494 | -4/Armory | Lost 7 parts (2p2n3w) 11534 | -4/Armory | Core integrity fell below 50% 11716 | -4/Armory | Lost 10 parts (1p4n1u4w) 11894 | -4/Armory | Scraphulk reinforcements arrived 11949 | -4/Armory | Fabricated Adv. Heavy Siege Treads (x1) 12289 | -4/Armory | Build established: Scavenger-Tank 12438 | -4/Armory | Spotted B-86 Titan 12485 | -4/Armory | High security lockdown imminent 12543 | -4/Armory | Fabricated Imp. Gravmag System? 12565 | -4/Armory | High security lockdown engaged 12589 | -4/Armory | Core integrity fell below 20% 12644 | -4/Armory | Destroyed by H-77 Assassin with Coil Gun Last Messages --------------- 12622_ Acquired VTOL Module. 12623_ Imp. Linear Gravjet destroyed. 12628_ Exp. Targeting Computer destroyed. 12629_ Arsenal Racks disabled. 12630_ Imp. Linear Gravjet destroyed. 12636_ S-27 Virus destroyed. 12637_ OHKOBD TD&/,#J&DAJ RDFQIX,LUB:HCF7GL 12640_ Component scanned: Plasma Rifle [G-67 Veteran]. 12640_ Rnf. Fission Core destroyed. 12640_ Dropped Lrg. Storage Unit. 12640_ VTOL Module destroyed. 12641_ Dropped Matter Neutralizer. 12642_ M-36 Artificer repairs H-77 Assassin. 12644_ Slug penetrates Arsenal Racks. 12644_ Slug penetrates Wall. 12644_ S-27 Virus destroyed. 12644_ Acquired 24 matter. 12644_ Slug penetrates Wall. 12644_ Penetrated by Slug. Map ----- +----------------------------------------------------+ | ??????????????# #???????#???????????# | | ??????????????# #????????????????? | | ??????????????# #????????????????? | | ??????????######/#### #????????????????? | | ??????????# # """ #????????????????? | | ??????????# # """ #????????????????? | | ??????????# # """ #????????????????? | | ??????????# # ?????????????????? | | ??????????# # ?? ?????????????????? | | ??????????# # ?????????????????????? | | ??????????# """" # ##+?????????????????????? | | ??????????# ???" ## #???????????????????????? | | ??????????# ???" ## #???????????????????????? | | ??????????# ????" ## #???????????????????????? | | ??????????# ????" + #???????????????????????? | | ??????????# ## #???????????????????????? | | ??????????# ## #???????????????????????? | | ??????????# ## #???????????????????????? | | ??????????# ## #???????????????????????? | | ??????????# ## #???????????????????????? | | ??????????############ #???????????????????????? | | ???????????# #########h######????????????????????? | | ???????????# + %l #????????????????????? | | ????????????##### ! gl * #????????????????????? | | ????????????????# mhl *= /#????????????????????? | | ????????????????# """""""@[ #????????????????????? | | ???????????????## """"""= #????????????????????? | | ???????????????#"%"""""""s #????????????????????? | | ???????????????#]!!!!ss #????????????????????? | | ???????????????###"""T"""####????????????????????? | | ?????????????????#########???????????????????????? | | ?????????????????????????????????????????????????? | | ?????????????????????????????????????????????????? | | ?????????????????????????????????????????????????? | | ?????????????????????????????????????????????????? | | ?????????????????????????????????????????????????? | | ?????????????????????????????????????????????????? | | ?????????????????????????????????????????????????? | | ?????????????????????????????????????????????????? | | ?????????????????????????????????????????????????? | | | | | | | | | | | | | | | | | | | | | +----------------------------------------------------+ Best States ------------- Heat Dissipation 74 Energy Generation 55 Energy Capacity 700 Matter Stores 300 Matter Capacity 300 Sight Range 16 Terrain Scan Range 20 Terrain Scan Density 335 Armor Coverage 450 Resistance: TH 50 Core Shielding 20 Propulsion Shielding 66 Evasion (%) 70 Targeting Accuracy 12 Recoil Reduction 6 Offensive Hacking 38 Defensive Hacking 25 Authchip Count 3 Item Schematics ----------------- Antimatter Cannon | -5/Factory | Scanalyzed Imp. Gravmag System | -5/Factory | Scanalyzed Adv. Recoil Stabilizer | -5/Factory | Scanalyzed Robot Schematics ------------------ G-47 Trooper | -7/Recycling | Hacked Fabricated ------------ Enh. Quantum Rifle | x2 | -5/Factory | Preloaded G-47 Trooper | x3 | -5/Factory Adv. Recoil Stabilizer | x2 | -4/Factory A-02 Transporter | x1 | -4/Armory | Preloaded Adv. Heavy Siege Treads | x1 | -4/Armory | Preloaded Imp. Gravmag System | x2 | -4/Armory | Authchip Repaired ---------- EM Pulse Gun | 15% | -10/Materials Airjet | 25% | -5/Factory Antigrav System | 1% | -5/Factory Airjet | 25% | -5/Factory | Broken Enh. Coil Gun | 7% | -5/Factory Exp. Heat Sink | 46% | -5/Factory Hyp. Coil Gun | 99% | -5/Factory | Broken Imp. Antigrav System | 10% | -4/Factory Antigrav System | 18% | -4/Factory Hyp. Coil Gun | 10% | -4/Factory Hyp. Coil Gun | 5% | -4/Factory Mic. Antimatter Reactor | 28% | -4/Factory Coil Gun | 47% | -4/Factory Imp. Linear Gravjet | 63% | -4/Factory Cld. Antigrav System | 18% | -4/Armory Alien Tech Used ----------------- None Achievements -------------- None Challenges ------------ None Game ------ Seed IonicNanofilamentsRay Manual? 0 Play Time 04:07:47 Cumulative 310.3 hours Start 2025.06.18 @ 19:52:55 End 2025.06.19 @ 01:45:50 Sessions 1 Manual Loads 0 Difficulty Rogue Special Mode None Game No. 194 Rogue 194 Adventurer 0 Explorer 0 Win Type - Total 4 Types 2/0/1/1/0/0/0/0/0/0 Lore% 83 Gallery% 70 Achievement% 67 Wizard Run 0 Options --------- Layout 2 ASCII 0 Keyboard 1 Movement Vi Keybinds 0 Fullscreen 1 Font 16/Tamsyn Map View 55x47 Zoom Use 0% Tactical HUD 1 Map Filters NONE Filters NONE Steam 0 RUN: 71b5715c-f32b-471b-ae0f-399fd1641e38